[Event "VI Sunway Sitges Open 2019"]
[Site "Sitges"]
[Date "2019.12.14"]
[Round "2.54"]
[White "Menac Comas, Joan Ramon"]
[Black "Franzoni Ladron de Guevara, Enric"]
[Result "1-0"]
[ECO "E60"]
[WhiteElo "1997"]
[BlackElo "1798"]
[Annotator "NA"]
[PlyCount "49"]
[EventDate "2019.12.13"]
[EventType "swiss"]
[EventCountry "ESP"]
[SourceTitle "playchess.com"]
[Source "ChessBase"]
[SourceQuality "1"]
[TimeControl "40/5400+30:1800+30"]

1. Nf3 {[%emt 0:00:00]} Nf6 {[%emt 0:01:04]} 2. g3 g6 {[%emt 0:00:30]} 3. b3 {[%emt 0:00:11]} Bg7 {[%emt 0:01:00]} 4. Bb2 {[%emt 0:01:45]} c5 {[%emt 0:02:19]} 5. c4 {[%emt 0:00:00]} Nc6 {[%emt 0:00:30]} 6. Bg2 {[%emt 0:00:39]} d6 {[%emt 0:03:36]} 7. O-O {[%emt 0:09:18]} O-O {[%emt 0:00:00]} 8. d4 {[%emt 0:00:30]} cxd4 {[%emt 0:00:00]} 9. Nxd4 {[%emt 0:00:30]} Bd7 {[%emt 0:09:52]} 10. Nc3 {[%emt 0:13:47]} Re8 {[%emt 0:08:15]} 11. Rc1 Nxd4 {[%emt 0:00:00]} 12. Qxd4 {[%emt 0:01:00]} Bc6 {[%emt 0:00:55]} 13. Nd5 {[%emt 0:02:54]} Qd7 {[%emt 0:19:37]} 14. a4 {[%emt 0:25:25]} b6 15. Qh4 {[%emt 0:02:27]} Nxd5 {[%emt 0:05:51]} 16. Bxg7 {[%emt 0:00:30]} Kxg7 {[%emt 0:05:49]} 17. cxd5 {[%emt 0:00:43]} Bb7 {[%emt 0:00:00]} 18. Bh3 {[%emt 0:03:37]} e6 19. Rfd1 {[%emt 0:09:42]} Rad8 {[%emt 0:00:00]} 20. dxe6 {[%emt 0:00:30]} fxe6 {[%emt 0:00:00]} 21. a5 {[%emt 0:05:17]} bxa5 {[%emt 0:00:00]} 22. Qd4+ {[%emt 0:00:00]} Kg8 23. Qxa7 {[%emt 0:01:40]} Ra8 {[%emt 0:09:44]} 24. Qd4 {[%emt 0:01:56]} Rad8 25. Qb6 1-0

[Event "VI Sunway Sitges Open 2019"]
[Site "Sitges"]
[Date "2019.12.15"]
[Round "3.4"]
[White "Kovalenko, Igor"]
[Black "Kelires, Andreas"]
[Result "0-1"]
[ECO "C84"]
[WhiteElo "2647"]
[BlackElo "2510"]
[Annotator "RC"]
[PlyCount "132"]
[EventDate "2019.12.13"]
[EventType "swiss"]
[EventCountry "ESP"]
[SourceTitle "playchess.com"]
[Source "ChessBase"]
[SourceQuality "1"]
[TimeControl "40/5400+30:1800+30"]

1. e4 {[%emt 0:01:11]} e5 {[%emt 0:00:00]} 2. Nf3 {[%emt 0:00:29]} Nc6 {[%emt 0:00:00]} 3. Bb5 {[%emt 0:00:03]} a6 {[%emt 0:00:00]} 4. Ba4 {[%emt 0:00:02]} Nf6 {[%emt 0:00:00]} 5. O-O {[%emt 0:00:03]} Be7 {[%emt 0:01:08]} 6. d3 {[%emt 0:01:06]} b5 {[%emt 0:00:00]} 7. Bb3 {[%emt 0:00:04]} d6 {[%emt 0:00:50]} 8. Bd2 {[%emt 0:03:08]} O-O {[%emt 0:01:32]} 9. Re1 {[%emt 0:13:33]} Bg4 {[%emt 0:14:17]} 10. c3 {[%emt 0:00:34]} Na5 {[%emt 0:00:50]} 11. Bc2 {[%emt 0:00:00]} c5 {[%emt 0:00:39]} 12. h3 {[%emt 0:00:32]} Bd7 {[%emt 0:02:44]} 13. Be3 {[%emt 0:00:00]} Qc7 {[%emt 0:01:54]} 14. Nbd2 {[%emt 0:00:00]} Rad8 {[%emt 0:09:13]} 15. Qe2 {[%emt 0:00:00]} Rfe8 {[%emt 0:13:17]} 16. Rac1 {[%emt 0:00:00]} d5 {[%emt 0:11:50]} 17. Bb1 {[%emt 0:23:43]} dxe4 {[%emt 0:02:06]} 18. dxe4 {[%emt 0:00:22]} c4 {[%emt 0:05:14]} 19. Nf1 {[%emt 0:00:31]} Nb7 {[%emt 0:01:36]} 20. b4 {[%emt 0:30:08]} cxb3 {[%emt 0:01:42]} 21. axb3 {[%emt 0:00:03]} Nc5 {[%emt 0:05:26]} 22. N1d2 {[%emt 0:00:35]} Bc6 {[%emt 0:01:02]} 23. Bxc5 {[%emt 0:00:33]} Bxc5 {[%emt 0:00:08]} 24. b4 {[%emt 0:00:01]} Bf8 {[%emt 0:04:24]} 25. Nb3 {[%emt 0:00:37]} g6 {[%emt 0:01:49]} 26. Na5 {[%emt 0:00:46]} Ba8 {[%emt 0:01:42]} 27. Qe3 {[%emt 0:00:51]} Kg7 {[%emt 0:03:11]} 28. Nb3 {[%emt 0:01:21]} h6 {[%emt 0:01:44]} 29. Re2 {[%emt 0:02:17]} Bb7 {[%emt 0:01:29]} 30. Ra2 {[%emt 0:02:02]} Bc8 {[%emt 0:02:32]} 31. Nfd2 {[%emt 0:01:21]} Qc6 {[%emt 0:03:26]} 32. Ra1 {[%emt 0:07:48]} Nh5 {[%emt 0:00:55]} 33. Nf3 {[%emt 0:00:12]} Qc7 {[%emt 0:02:37]} 34. Bd3 {[%emt 0:03:20]} Be6 {[%emt 0:03:05]} 35. Nbd2 {[%emt 0:00:19]} Qd6 {[%emt 0:01:01]} 36. Bf1 {[%emt 0:00:05]} Nf6 {[%emt 0:01:57]} 37. Rd1 {[%emt 0:07:32]} Bc8 {[%emt 0:01:03]} 38. Be2 {[%emt 0:03:01]} Qe6 {[%emt 0:00:38]} 39. Rdb1 {[%emt 0:00:26]} Bb7 {[%emt 0:01:29]} 40. c4 {[%emt 0:00:00]} bxc4 {[%emt 0:00:00]} 41. Bxc4 {[%emt 0:00:12]} Qc8 {[%emt 0:05:46]} 42. Qa7 {[%emt 0:18:37]} Rd6 {[%emt 0:08:35]} 43. Ra5 {[%emt 0:00:14]} Re7 {[%emt 0:05:02]} 44. Qe3 {[%emt 0:00:13]} Rc6 {[%emt 0:01:33]} 45. Qe2 {[%emt 0:01:38]} Nd7 {[%emt 0:05:50]} 46. Qf1 {[%emt 0:02:24]} Rb6 {[%emt 0:01:06]} 47. b5 {[%emt 0:01:32]} axb5 {[%emt 0:00:07]} 48. Bxb5 {[%emt 0:00:03]} Nf6 {[%emt 0:01:37]} 49. Bd3 {[%emt 0:01:11]} Rxb1 {[%emt 0:01:28]} 50. Qxb1 {[%emt 0:00:04]} Qc3 {[%emt 0:01:29]} 51. Rb5 {[%emt 0:01:33]} Ba6 {[%emt 0:00:35]} 52. Rb3 {[%emt 0:00:05]} Bxd3 {[%emt 0:00:04]} 53. Qxd3 {[%emt 0:00:03]} Qxd3 {[%emt 0:00:29]} 54. Rxd3 {[%emt 0:00:03]} Re6 {[%emt 0:00:35]} 55. Rb3 {[%emt 0:00:14]} Nd7 {[%emt 0:01:24]} 56. Kf1 {[%emt 0:01:02]} Kf6 {[%emt 0:00:39]} 57. Nc4 {[%emt 0:00:42]} Nc5 {[%emt 0:00:50]} 58. Re3 {[%emt 0:00:24]} Nd7 {[%emt 0:00:22]} 59. Re1 {[%emt 0:05:20]} Bc5 {[%emt 0:00:24]} 60. Rd1 {[%emt 0:00:13]} Nb6 {[%emt 0:00:52]} 61. Nb2 {[%emt 0:00:44]} Rd6 {[%emt 0:00:29]} 62. Nd3 {[%emt 0:00:19]} Nd7 {[%emt 0:01:01]} 63. Ke2 {[%emt 0:00:20]} Bb6 {[%emt 0:01:02]} 64. Rc1 {[%emt 0:00:17]} Re6 {[%emt 0:00:52]} 65. Rc8 {[%emt 0:00:35]} Kg7 {[%emt 0:00:07]} 66. Rb8 {[%emt 0:02:22]} Nxb8 {[%emt 0:00:05]} 0-1

[Event "VI Sunway Sitges Open 2019"]
[Site "Sitges"]
[Date "2019.12.15"]
[Round "3.14"]
[White "Praggnanandhaa R"]
[Black "Kjartansson, Gudmundur"]
[Result "1-0"]
[ECO "A09"]
[WhiteElo "2586"]
[BlackElo "2448"]
[Annotator "ChessBase"]
[PlyCount "67"]
[EventDate "2019.12.13"]
[EventType "swiss"]
[EventCountry "ESP"]
[SourceTitle "playchess.com"]
[Source "ChessBase"]
[SourceQuality "1"]
[TimeControl "40/5400+30:1800+30"]

1. Nf3 d5 {[%emt 0:00:00]} 2. g3 g6 {[%emt 0:00:30]} 3. c4 dxc4 {[%emt 0:00:30]} 4. Na3 Bg7 {[%emt 0:00:30]} 5. Nxc4 Nc6 {[%emt 0:00:30]} 6. d3 e5 {[%emt 0:00:30]} 7. Bd2 b5 {[%emt 0:00:30]} 8. Ne3 Nge7 {[%emt 0:00:30]} 9. Bg2 Rb8 {[%emt 0:00:30]} 10. O-O O-O {[%emt 0:00:30]} 11. Rc1 h6 {[%emt 0:00:30]} 12. Rc5 Qd6 {[%emt 0:00:30]} 13. Qc2 Be6 {[%emt 0:00:30]} 14. Rc1 Rb6 {[%emt 0:00:30]} 15. b4 Ra6 {[%emt 0:00:30]} 16. a4 Nd4 {[%emt 0:00:30]} 17. Nxd4 exd4 {[%emt 0:00:30]} 18. Nf1 Rxa4 {[%emt 0:00:30]} 19. Bf4 Qa6 {[%emt 0:00:30]} 20. Rxc7 Nd5 {[%emt 0:00:30]} 21. Rc6 Qb7 {[%emt 0:00:30]} 22. Qc5 Nxf4 {[%emt 0:00:30]} 23. gxf4 Qb8 {[%emt 0:00:30]} 24. Rc7 Rd8 {[%emt 0:00:30]} 25. f5 Bxf5 {[%emt 0:00:30]} 26. Bd5 Rxd5 {[%emt 0:00:30]} 27. Qxd5 Qe8 {[%emt 0:00:30]} 28. Re1 Be6 {[%emt 0:00:30]} 29. Qb7 Kh7 {[%emt 0:00:30]} 30. Re7 Qd8 {[%emt 0:00:30]} 31. Qxb5 Qxe7 {[%emt 0:00:30]} 32. Qxa4 h5 {[%emt 0:00:30]} 33. Qa5 Qh4 {[%emt 0:00:30]} 34. Qxa7 1-0

[Event "VI Sunway Sitges Open 2019"]
[Site "Sitges"]
[Date "2019.12.15"]
[Round "3.16"]
[White "Peralta, Fernando"]
[Black "Batsiashvili, Nino"]
[Result "0-1"]
[ECO "E56"]
[WhiteElo "2577"]
[BlackElo "2447"]
[Annotator "ChessBase"]
[PlyCount "40"]
[EventDate "2019.12.13"]
[EventType "swiss"]
[EventCountry "ESP"]
[SourceTitle "playchess.com"]
[Source "ChessBase"]
[SourceQuality "1"]
[TimeControl "40/5400+30:1800+30"]

1. d4 Nf6 {[%emt 0:00:00]} 2. c4 e6 {[%emt 0:00:30]} 3. Nc3 Bb4 {[%emt 0:00:30]} 4. e3 O-O {[%emt 0:00:30]} 5. Bd3 d5 {[%emt 0:00:30]} 6. Nf3 dxc4 {[%emt 0:00:30]} 7. Bxc4 c5 {[%emt 0:00:30]} 8. O-O Nc6 {[%emt 0:00:30]} 9. a3 Ba5 {[%emt 0:00:30]} 10. Ba2 h6 {[%emt 0:00:30]} 11. Qd3 Re8 {[%emt 0:00:30]} 12. Rd1 a6 {[%emt 0:00:30]} 13. Ne4 Nxe4 {[%emt 0:00:30]} 14. Qxe4 Bc7 {[%emt 0:00:30]} 15. h4 Qd6 {[%emt 0:00:30]} 16. Bd2 cxd4 {[%emt 0:00:30]} 17. exd4 Bd7 {[%emt 0:00:30]} 18. Rac1 Rad8 {[%emt 0:00:30]} 19. Bb1 f5 {[%emt 0:00:30]} 20. Qe2 Nxd4 {[%emt 0:00:30]} 0-1

[Event "VI Sunway Sitges Open 2019"]
[Site "Sitges"]
[Date "2019.12.15"]
[Round "3.17"]
[White "Vogel, Roven"]
[Black "Lopez Martinez, Josep Manuel"]
[Result "1/2-1/2"]
[ECO "D24"]
[WhiteElo "2457"]
[BlackElo "2561"]
[Annotator "ChessBase"]
[PlyCount "41"]
[EventDate "2019.12.13"]
[EventType "swiss"]
[EventCountry "ESP"]
[SourceTitle "playchess.com"]
[Source "ChessBase"]
[SourceQuality "1"]
[TimeControl "40/5400+30:1800+30"]

1. c4 e6 2. Nf3 d5 3. d4 Nf6 4. Nc3 dxc4 5. e4 Bb4 6. Bxc4 Nxe4 7. O-O Nxc3 8. bxc3 Bd6 9. Ng5 h6 10. Qh5 O-O 11. Ne4 f5 12. Nxd6 cxd6 13. Bxh6 gxh6 14. Qg6+ Kh8 15. Qxh6+ Kg8 16. Bxe6+ Bxe6 17. Qg6+ Kh8 18. Qh6+ Kg8 19. Qg6+ Kh8 20. Qh6+ Kg8 21. Qg6+ 1/2-1/2

[Event "VI Sunway Sitges Open 2019"]
[Site "Sitges"]
[Date "2019.12.15"]
[Round "3.18"]
[White "Dragnev, Valentin"]
[Black "Raja Harshit"]
[Result "1/2-1/2"]
[ECO "E05"]
[WhiteElo "2553"]
[BlackElo "2447"]
[Annotator "ChessBase"]
[PlyCount "60"]
[EventDate "2019.12.13"]
[EventType "swiss"]
[EventCountry "ESP"]
[SourceTitle "playchess.com"]
[Source "ChessBase"]
[SourceQuality "1"]
[TimeControl "40/5400+30:1800+30"]

1. d4 Nf6 2. c4 e6 3. Nf3 d5 4. g3 Be7 5. Bg2 O-O 6. O-O dxc4 7. Qc2 a6 8. a4 Bd7 9. Qxc4 Bc6 10. Bg5 Nbd7 11. Nc3 h6 12. Bxf6 Nxf6 13. Rfd1 Bd5 14. Qd3 Bxf3 15. Bxf3 c6 16. e4 Qa5 17. e5 Nd5 18. h4 Rfd8 19. h5 Nb4 20. Qe4 Rd7 21. Be2 Rad8 22. Rd2 c5 23. Rad1 cxd4 24. Rxd4 Rxd4 25. Rxd4 Rxd4 26. Qxd4 Nc6 27. Qd7 Qb4 28. Bxa6 bxa6 29. Qxc6 Qxb2 30. Kg2 Bb4 1/2-1/2

[Event "VI Sunway Sitges Open 2019"]
[Site "Sitges"]
[Date "2019.12.15"]
[Round "3.19"]
[White "Real De Azua, Ernesto"]
[Black "Gukesh D"]
[Result "1/2-1/2"]
[ECO "E49"]
[WhiteElo "2450"]
[BlackElo "2547"]
[Annotator "ChessBase"]
[PlyCount "116"]
[EventDate "2019.12.13"]
[EventType "swiss"]
[EventCountry "ESP"]
[SourceTitle "playchess.com"]
[Source "ChessBase"]
[SourceQuality "1"]
[TimeControl "40/5400+30:1800+30"]

1. d4 d5 2. c4 e6 3. Nc3 Bb4 4. a3 Bxc3+ 5. bxc3 Nf6 6. e3 O-O 7. cxd5 exd5 8. Bd3 b6 9. Ne2 Ba6 10. O-O Re8 11. f3 c5 12. Ng3 Bxd3 13. Qxd3 Nc6 14. Bb2 c4 15. Qe2 h5 16. Rae1 h4 17. Nf5 Ne7 18. Nxe7+ Qxe7 19. Qf2 h3 20. g4 Nh7 21. e4 dxe4 22. fxe4 Rac8 23. Bc1 Rc6 24. Qf3 Rg6 25. e5 Nf6 26. g5 Nh7 27. Qxh3 Nxg5 28. Bxg5 Rxg5+ 29. Kh1 Qxa3 30. Qf3 Qe7 31. d5 Rxe5 32. Rxe5 Qxe5 33. Qxf7+ Kh7 34. Qf3 Qe4 35. Qxe4+ Rxe4 36. d6 Re8 37. Rf7 Rd8 38. Rxa7 Rxd6 39. Rc7 Rd1+ 40. Kg2 Rd2+ 41. Kg1 b5 42. Rc5 Rb2 43. h4 Kg6 44. Kf1 Kh6 45. Rd5 Kh7 46. Rc5 Kg6 47. Rd5 Kh6 48. Rc5 g6 49. Rd5 Rb3 50. Kg2 Rxc3 51. Rxb5 Rd3 52. Rc5 c3 53. Kh2 Rd2+ 54. Kg3 c2 55. Rc7 Rd3+ 56. Kg4 Rd2 57. Kg3 Re2 58. Kg4 Rf2 1/2-1/2

[Event "VI Sunway Sitges Open 2019"]
[Site "Sitges"]
[Date "2019.12.15"]
[Round "3.20"]
[White "Shevchenko, Kirill"]
[Black "Esplugas Esteve, Vicenc"]
[Result "1-0"]
[ECO "A81"]
[WhiteElo "2547"]
[BlackElo "2366"]
[Annotator "ChessBase"]
[PlyCount "37"]
[EventDate "2019.12.13"]
[EventType "swiss"]
[EventCountry "ESP"]
[SourceTitle "playchess.com"]
[Source "ChessBase"]
[SourceQuality "1"]
[TimeControl "40/5400+30:1800+30"]

1. Nf3 d6 2. d4 f5 3. g3 Nf6 4. Bg2 g6 5. O-O Bg7 6. b3 a5 7. c4 O-O 8. Nc3 Nc6 9. Bb2 Ne4 10. Rc1 e5 11. dxe5 Nxc3 12. Bxc3 dxe5 13. Qd5+ Kh8 14. Qxd8 Rxd8 15. Ng5 Re8 16. Nf7+ Kg8 17. Bd5 Kf8 18. Ng5 h6 19. Bxc6 {[%emt 0:23:24]} 1-0

[Event "VI Sunway Sitges Open 2019"]
[Site "Sitges"]
[Date "2019.12.15"]
[Round "3.21"]
[White "Rafiee, Makan"]
[Black "Nasuta, Grzegorz"]
[Result "1/2-1/2"]
[ECO "C11"]
[WhiteElo "2335"]
[BlackElo "2545"]
[Annotator "ChessBase"]
[PlyCount "97"]
[EventDate "2019.12.13"]
[EventType "swiss"]
[EventCountry "ESP"]
[SourceTitle "playchess.com"]
[Source "ChessBase"]
[SourceQuality "1"]
[TimeControl "40/5400+30:1800+30"]

1. e4 {[%emt 0:00:00]} e6 {[%emt 0:00:11]} 2. d4 {[%emt 0:00:00]} d5 {[%emt 0:00:05]} 3. Nc3 {[%emt 0:00:00]} Nf6 {[%emt 0:00:35]} 4. e5 {[%emt 0:00:09]} Nfd7 {[%emt 0:00:07]} 5. f4 {[%emt 0:00:14]} c5 {[%emt 0:00:06]} 6. Nce2 {[%emt 0:00:42]} Nc6 {[%emt 0:00:58]} 7. c3 {[%emt 0:00:18]} Be7 {[%emt 0:00:34]} 8. Nf3 {[%emt 0:00:15]} O-O {[%emt 0:00:52]} 9. h4 {[%emt 0:00:40]} a5 {[%emt 0:03:07]} 10. Neg1 {[%emt 0:08:35]} h6 {[%emt 0:56:08]} 11. Bd3 {[%emt 0:01:25]} f5 {[%emt 0:00:06]} 12. g4 {[%emt 0:15:44]} cxd4 {[%emt 0:12:32]} 13. cxd4 {[%emt 0:00:29]} Bb4+ {[%emt 0:07:39]} 14. Kf1 {[%emt 0:01:27]} fxg4 {[%emt 0:10:28]} 15. Ng5 {[%emt 0:00:07]} Ndxe5 {[%emt 0:01:16]} 16. dxe5 {[%emt 0:00:45]} Nxe5 {[%emt 0:00:01]} 17. Bh7+ {[%emt 0:01:47]} Kh8 {[%emt 0:00:01]} 18. Kg2 {[%emt 0:00:54]} Nf7 {[%emt 0:00:23]} 19. Bg6 {[%emt 0:05:40]} Nd6 {[%emt 0:00:01]} 20. Qxg4 {[%emt 0:23:40]} e5 {[%emt 0:00:43]} 21. Qh5 {[%emt 0:00:12]} exf4 {[%emt 0:00:19]} 22. Ne2 {[%emt 0:01:45]} Ne8 {[%emt 0:01:26]} 23. Nf7+ {[%emt 0:01:13]} Rxf7 {[%emt 0:00:01]} 24. Bxf7 {[%emt 0:00:06]} Nf6 {[%emt 0:00:15]} 25. Qg6 {[%emt 0:07:45]} f3+ {[%emt 0:00:00]} 26. Kxf3 {[%emt 0:00:08]} Bg4+ {[%emt 0:00:07]} 27. Kf2 {[%emt 0:02:14]} Qe7 {[%emt 0:03:59]} 28. Nf4 {[%emt 0:04:42]} Rf8 {[%emt 0:00:26]} 29. Kg2 {[%emt 0:07:35]} Rxf7 {[%emt 0:00:31]} 30. Qxg4 {[%emt 0:00:47]} Nxg4 {[%emt 0:00:13]} 31. Ng6+ {[%emt 0:00:04]} Kh7 {[%emt 0:00:14]} 32. Nxe7 {[%emt 0:00:05]} Rxe7 {[%emt 0:00:25]} 33. Bf4 {[%emt 0:00:55]} h5 {[%emt 0:01:08]} 34. Rad1 {[%emt 0:01:39]} Re2+ {[%emt 0:01:08]} 35. Kf3 {[%emt 0:00:33]} Rf2+ {[%emt 0:00:16]} 36. Kg3 {[%emt 0:00:04]} Rxb2 {[%emt 0:00:22]} 37. Rxd5 {[%emt 0:00:16]} Nf6 {[%emt 0:00:05]} 38. Be5 {[%emt 0:00:52]} Rxa2 {[%emt 0:01:36]} 39. Bxf6 {[%emt 0:00:05]} gxf6 {[%emt 0:00:02]} 40. Rxh5+ {[%emt 0:00:00]} Kg6 {[%emt 0:00:00]} 41. Rb5 {[%emt 0:00:10]} Bd6+ {[%emt 0:05:36]} 42. Kf3 {[%emt 0:03:57]} Be5 {[%emt 0:07:26]} 43. h5+ {[%emt 0:01:46]} Kh6 {[%emt 0:00:11]} 44. Rxb7 {[%emt 0:00:27]} Ra3+ {[%emt 0:00:22]} 45. Ke4 {[%emt 0:00:40]} Rg3 {[%emt 0:01:41]} 46. Ra7 {[%emt 0:02:24]} a4 {[%emt 0:00:15]} 47. Ra8 {[%emt 0:00:37]} a3 {[%emt 0:01:06]} 48. Kf5 {[%emt 0:01:33]} Bb2 {[%emt 0:04:45]} 49. Rh8+ {[%emt 0:00:58]} 1/2-1/2

[Event "VI Sunway Sitges Open 2019"]
[Site "Sitges"]
[Date "2019.12.15"]
[Round "3.22"]
[White "Risting, Eivind Olav"]
[Black "Li, Di"]
[Result "0-1"]
[ECO "D15"]
[WhiteElo "2307"]
[BlackElo "2543"]
[Annotator "RC"]
[PlyCount "168"]
[EventDate "2019.12.13"]
[EventType "swiss"]
[EventCountry "ESP"]
[SourceTitle "playchess.com"]
[Source "ChessBase"]
[SourceQuality "1"]
[TimeControl "40/5400+30:1800+30"]

1. d4 {[%emt 0:00:00]} d5 {[%emt 0:00:00]} 2. c4 {[%emt 0:00:00]} c6 {[%emt 0:00:17]} 3. Nc3 {[%emt 0:00:24]} Nf6 {[%emt 0:00:16]} 4. e3 {[%emt 0:00:19]} a6 {[%emt 0:03:13]} 5. Nf3 {[%emt 0:01:00]} Bf5 {[%emt 0:01:24]} 6. Qb3 {[%emt 0:02:40]} Ra7 {[%emt 0:02:02]} 7. Nh4 {[%emt 0:01:38]} Bc8 {[%emt 0:02:27]} 8. Qc2 b5 {[%emt 0:09:30]} 9. b3 {[%emt 0:08:14]} Nbd7 {[%emt 0:12:24]} 10. Nf3 {[%emt 0:04:50]} e6 {[%emt 0:05:05]} 11. Bd3 {[%emt 0:07:33]} Be7 {[%emt 0:12:37]} 12. O-O {[%emt 0:02:06]} dxc4 {[%emt 0:02:55]} 13. bxc4 {[%emt 0:00:30]} bxc4 {[%emt 0:00:20]} 14. Bxc4 {[%emt 0:00:49]} c5 {[%emt 0:00:20]} 15. Rd1 {[%emt 0:18:42]} Bb7 {[%emt 0:23:56]} 16. d5 {[%emt 0:04:08]} exd5 {[%emt 0:00:06]} 17. Nxd5 {[%emt 0:00:11]} Nxd5 {[%emt 0:00:08]} 18. Bxd5 {[%emt 0:00:08]} Bxd5 {[%emt 0:00:06]} 19. Rxd5 {[%emt 0:00:08]} Qa8 {[%emt 0:00:11]} 20. e4 {[%emt 0:05:36]} O-O {[%emt 0:00:56]} 21. Bb2 {[%emt 0:01:39]} Nb6 {[%emt 0:04:33]} 22. Rh5 {[%emt 0:04:37]} Qc6 {[%emt 0:00:49]} 23. Qc3 {[%emt 0:08:28]} Qg6 {[%emt 0:01:38]} 24. Rf5 {[%emt 0:09:38]} Na4 {[%emt 0:00:49]} 25. Qc2 {[%emt 0:00:10]} Nxb2 {[%emt 0:00:20]} 26. Qxb2 {[%emt 0:00:15]} Qe6 {[%emt 0:02:55]} 27. Qc2 {[%emt 0:03:16]} Rd7 {[%emt 0:01:08]} 28. Re1 {[%emt 0:01:22]} Rfd8 {[%emt 0:03:36]} 29. h3 {[%emt 0:04:22]} Bf8 {[%emt 0:01:32]} 30. Ng5 {[%emt 0:07:30]} Qg6 {[%emt 0:00:09]} 31. Nf3 {[%emt 0:00:27]} Rb7 {[%emt 0:01:01]} 32. Rb1 {[%emt 0:01:25]} Rc7 {[%emt 0:05:22]} 33. Re1 {[%emt 0:01:21]} h6 {[%emt 0:00:30]} 34. Qc4 {[%emt 0:00:58]} Qe6 {[%emt 0:00:08]} 35. Rd5 {[%emt 0:00:35]} Rb7 {[%emt 0:02:23]} 36. Qd3 {[%emt 0:01:24]} Rbd7 {[%emt 0:01:27]} 37. Rd1 {[%emt 0:00:39]} Rd6 {[%emt 0:00:34]} 38. Qc4 {[%emt 0:01:13]} Rb6 {[%emt 0:00:46]} 39. Qc2 {[%emt 0:00:29]} Rdb8 {[%emt 0:00:54]} 40. e5 {[%emt 0:00:00]} Rb2 {[%emt 0:00:00]} 41. Qa4 {[%emt 0:07:41]} Rb1 {[%emt 0:04:07]} 42. R5d2 {[%emt 0:04:35]} Rxd1+ {[%emt 0:02:37]} 43. Rxd1 {[%emt 0:01:55]} Be7 {[%emt 0:01:50]} 44. Qa5 {[%emt 0:02:08]} Rb7 {[%emt 0:03:04]} 45. Qd2 {[%emt 0:04:41]} Bf8 {[%emt 0:02:03]} 46. Qe2 {[%emt 0:01:55]} Rb8 {[%emt 0:01:52]} 47. Qc2 {[%emt 0:00:45]} g6 {[%emt 0:01:13]} 48. Qe2 {[%emt 0:00:46]} Kg7 {[%emt 0:00:21]} 49. Qc2 {[%emt 0:01:09]} Be7 {[%emt 0:00:12]} 50. Qa4 {[%emt 0:01:59]} Kf8 {[%emt 0:02:18]} 51. Qf4 {[%emt 0:01:15]} Kg7 {[%emt 0:00:08]} 52. Qa4 {[%emt 0:00:55]} Rb7 {[%emt 0:01:57]} 53. Qa5 {[%emt 0:02:11]} Kh7 {[%emt 0:01:44]} 54. Qa4 {[%emt 0:00:18]} Rb5 {[%emt 0:01:01]} 55. Qc2 {[%emt 0:01:20]} Rb4 {[%emt 0:00:47]} 56. Rd2 {[%emt 0:00:41]} Kg7 {[%emt 0:00:27]} 57. Rd1 {[%emt 0:00:21]} Kg8 {[%emt 0:03:57]} 58. Qd2 {[%emt 0:00:19]} Kh7 {[%emt 0:00:38]} 59. Qc2 {[%emt 0:00:45]} Kg7 {[%emt 0:00:06]} 60. Rd2 {[%emt 0:00:56]} a5 {[%emt 0:00:48]} 61. Qc3 {[%emt 0:01:58]} Kh7 {[%emt 0:03:14]} 62. Qc2 {[%emt 0:00:13]} a4 {[%emt 0:00:29]} 63. Qc3 {[%emt 0:01:47]} Rb1+ {[%emt 0:01:52]} 64. Kh2 {[%emt 0:00:03]} Rb7 {[%emt 0:00:21]} 65. Kg1 {[%emt 0:00:43]} Rb4 {[%emt 0:00:41]} 66. Kh1 {[%emt 0:00:58]} Qf5 {[%emt 0:01:13]} 67. Re2 {[%emt 0:01:28]} Rb1+ {[%emt 0:02:08]} 68. Re1 {[%emt 0:00:31]} Qe4 {[%emt 0:00:26]} 69. Kh2 {[%emt 0:00:29]} Rxe1 {[%emt 0:01:43]} 70. Qxe1 {[%emt 0:00:09]} Qf4+ {[%emt 0:00:22]} 71. Kg1 {[%emt 0:00:06]} Qc4 {[%emt 0:01:06]} 72. Qd2 {[%emt 0:00:07]} a3 {[%emt 0:00:52]} 73. Qd7 {[%emt 0:01:21]} Bf8 {[%emt 0:00:57]} 74. Qd2 {[%emt 0:00:17]} Qe4 {[%emt 0:00:40]} 75. h4 {[%emt 0:00:56]} Kg8 {[%emt 0:00:22]} 76. Kh2 {[%emt 0:00:45]} c4 {[%emt 0:00:42]} 77. Kg1 {[%emt 0:00:47]} Qb1+ {[%emt 0:00:18]} 78. Qe1 {[%emt 0:00:31]} Qf5 {[%emt 0:00:55]} 79. Qc3 {[%emt 0:00:21]} Qb1+ {[%emt 0:00:23]} 80. Qe1 {[%emt 0:00:04]} Qxa2 {[%emt 0:00:27]} 81. e6 {[%emt 0:00:09]} Qb2 {[%emt 0:00:27]} 82. exf7+ {[%emt 0:01:24]} Kg7 {[%emt 0:00:02]} 83. Qe4 {[%emt 0:00:31]} a2 {[%emt 0:00:14]} 84. h5 {[%emt 0:00:27]} Qb1+ {[%emt 0:00:34]} 0-1